Cogmind - Beta 13 @@@ ROGUE MODE // 2024.05.08 @ 16:03:08 Player: Spoodle Result: Core destroyed Performance ------------- Evolutions (1) 500 Regions Visited (3) 600 Robots Destroyed (67) 335 Value Destroyed (1472) 1472 Prototype IDs (9) 180 Alien Tech Used (0) 0 Bonus (15) 15 TOTAL SCORE: 3102 Bonus ------- High Alert Combat Kills 15 Cogmind --------- Core Integrity 0/400 Matter 283/300 Energy 216/250 System Corruption 5% Temperature Critical (542) Movement Treading (160) Location -9/Materials Parts ------- > --- POWER (1) -------- Ion Engine > --- PROPULSION (3) --- Light Treads Light Treads Improved Treads > --- UTILITY (3) ------ Medium Storage Unit Transport Network Coupler > --- WEAPON (2) ------- Advanced Beam Cannon Advanced Beam Cannon > --- INVENTORY (10) --- Cooled Ion Engine Light Treads Light Treads Armored Wheel Seismic Detector Improved Targeting Computer Medium Armor Plating Advanced Beam Cannon Advanced Beam Cannon Mini Grenade Launcher Peak State ------------ > --- POWER ------------ Improved Ion Engine > --- PROPULSION ------- Light Treads Light Treads Improved Treads > --- UTILITY ---------- Medium Storage Unit Transport Network Coupler Medium Armor Plating > --- WEAPON ----------- Advanced Beam Cannon Advanced Beam Cannon > --- INVENTORY -------- Cooled Ion Engine Light Treads Light Treads Armored Wheel Seismic Detector Improved Targeting Computer Medium Armor Plating Advanced Beam Cannon Advanced Beam Cannon Mini Grenade Launcher [Rating: 18] Favorites ----------- Power Ion Engine Engine Ion Engine Power Core Light Nuclear Core Propulsion Light Treads Treads Light Treads Wheel Compact Wheel Hover Unit Hover Unit Flight Unit Flight Unit Utility Heat Sink Device Heat Sink Storage Medium Storage Unit Processor Transport Network Coupler Protection Light Armor Plating Weapon Medium Laser Energy Gun Medium Laser Energy Cannon Advanced Beam Cannon Ballistic Gun Assault Rifle Build | -11 -10 -10 -9 ------- Run | Yrd Mat Min Mat Slots Evolved 2 | . . . 2 Power . | . . . . Propulsion 1 | . . . 1 Utility 1 | . . . 1 Weapon . | . . . . Parts Attached 63 | 7 9 1 46 Power 9 | 1 1 . 7 Engine 7 | 1 1 . 5 Core 2 | . . . 2 Reactor . | . . . . Propulsion 18 | 2 1 1 14 Treads 12 | 2 1 . 9 Leg . | . . . . Wheel 1 | . . 1 . Hover 3 | . . . 3 Flight 2 | . . . 2 Utility 19 | 2 5 . 12 Device 6 | 1 1 . 4 Storage 7 | 1 4 . 2 Processor 1 | . . . 1 Hackware . | . . . . Protection 5 | . . . 5 Artifact . | . . . . Weapon 17 | 2 2 . 13 Energy Gun 9 | 2 1 . 6 Energy Cannon 5 | . . . 5 Ballistic Gun 3 | . 1 . 2 Ballistic Cannon . | . . . . Launcher . | . . . . Special Weapon . | . . . . Impact Weapon . | . . . . Slashing Weapon . | . . . . Piercing Weapon . | . . . . Special Melee Weapon . | . . . . Unidentified Prototypes 4 | . . . 4 Parts Lost 10 | . 1 3 6 Power 1 | . . 1 . Propulsion 4 | . . 1 3 Utility 1 | . . . 1 Weapon 4 | . 1 1 2 Highest Loss Streak 4 | . 1 3 4 To Critical Strikes . | . . . . Average Slot Usage (%) 96 | . 99 55 96 Engine 11 | . 14 8 10 Treads 24 | . 28 8 22 Hover 1 | . . . 2 Flight 3 | . . . 6 Device 10 | . 14 8 7 Storage 12 | . 14 8 10 Processor 3 | . . . 5 Protection 4 | . . . 7 Energy Gun 11 | . 15 8 8 Energy Cannon 4 | . . . 8 Ballistic Gun 7 | . 11 6 4 Naked Turns 33 | . . 33 . Heaviest Build 90 | 13 90 90 32 Greatest Support 63 | 40 40 16 63 Greatest Overweight (x) 5 | . 2 5 5 Average Overweight (x) . | . . 1 . Largest Inventory Capacity 25 | 8 25 25 10 Average Capacity 13 | 7 18 16 9 Most Carried 20 | 7 20 20 10 Average Carried 11 | 4 15 13 8 Final Capacity 25 | 8 25 5 10 Final Carried 20 | 7 20 5 10 Class Distribution -------------------- 52% | Mutant 47% | Scavenger-Mutant Dominant Class ---------------- Mutant | -10/Materials Mutant | -10/Mines Scavenger-Mutant | -9/Materials Resources | -11 -10 -10 -9 ----------- Run | Yrd Mat Min Mat Matter Collected 1242 | 308 409 . 525 Remotely . | . . . . Salvage Created 2443 | 85 639 . 1719 Parts 162 | 7 38 . 117 Haulers Intercepted 6 | . 2 . 4 Recyclers Shooed . | . . . . Parts Field Recycled . | . . . . Retrieved Matter . | . . . . Parts Self-Destructed . | . . . . Prevented . | . . . . Kills | -11 -10 -10 -9 ------- Run | Yrd Mat Min Mat Combat Hostiles Destroyed 39 | . 9 . 30 Guns 30 | . 8 . 22 Cannons 8 | . . . 8 Classes Destroyed 12 | 3 5 . 4 Worker 6 | 1 1 . 4 Builder 3 | . 2 . 1 Tunneler 1 | 1 . . . Hauler 6 | . 2 . 4 Recycler 5 | 1 1 . 3 Mechanic 1 | . . . 1 Operator 3 | . 1 . 2 Watcher 3 | . 1 . 2 Swarmer 9 | . . . 9 Grunt 20 | . 9 . 11 Brawler 1 | . . . 1 Sentry 9 | . . . 9 Best Kill Streak 5 | 1 2 . 5 Combat Bots Only 4 | . 2 . 4 Max Kills in Single Turn 2 | 1 2 . 2 Gunslinging 1 | . . . 1 Exploded . | . . . . Melee . | . . . . Uniques/NPCs Destroyed . | . . . . Combat | -11 -10 -10 -9 -------- Run | Yrd Mat Min Mat Hostile Shots Fired 249 | . 57 20 172 Missed 60 | . 18 3 39 Damage Taken 2420 | . 503 397 1520 Core 695 | . 64 171 460 Absorbed by Shields . | . . . . Regen/Repaired (Parts) 77 | . . . 77 Core Remaining (%) 53 | 100 . 6 . Volleys Fired 168 | 3 59 . 106 Largest 2 | 2 2 . 2 Hottest 136 | 100 100 . 136 Shots Fired 322 | 6 117 . 199 Gun 264 | 6 117 . 141 Cannon 58 | . . . 58 Launcher . | . . . . Special . | . . . . Kinetic 72 | . 42 . 30 Thermal 250 | 6 75 . 169 Explosive . | . . . . Electromagnetic . | . . . . Robot Hit Streak 20 | 5 19 . 20 Robot Miss Streak 4 | . 4 . 3 Penetration Max . | . . . . Secondary Targets 2 | . . . 2 Max Gunslinging Chain 1 | . . . 1 Shots Hit Robots 222 | 5 82 . 135 Core Hits 99 | 4 31 . 64 Critical Kills 1 | . . . 1 Critical Parts Destroyed . | . . . . Critical Strikes 11 | . 4 . 7 Burn 10 | . 4 . 6 Meltdown 1 | . . . 1 Melee Attacks . | . . . . Impact . | . . . . Slashing . | . . . . Piercing . | . . . . Sneak Attacks . | . . . . Combat Hostiles . | . . . . Follow-up Attacks . | . . . . Damage Inflicted 3177 | 65 1050 . 2062 Guns 2489 | 65 1050 . 1374 Cannons 688 | . . . 688 Explosions . | . . . . Melee . | . . . . Ramming . | . . . . Kinetic 577 | . 382 . 195 Thermal 2600 | 65 668 . 1867 Explosive . | . . . . Electromagnetic . | . . . . Impact . | . . . . Slashing . | . . . . Piercing . | . . . . Highest Corruption 5 | . 2 2 5 Average Corruption 3 | . 1 2 4 Corruption Purged . | . . . . Corruption Blocked . | . . . . Effects 39 | . 11 1 27 Message Errors 6 | . . 1 5 Matter Fused 8 | . 3 . 5 Heat Flow Errors 6 | . . . 6 Energy Discharges 5 | . 3 . 2 Parts Rejected 1 | . . . 1 Data Loss (minor) 4 | . 1 . 3 Data Loss (major) 2 | . 2 . . Misfires 3 | . . . 3 Alerts 2 | . 1 . 1 Weapon Failures 2 | . 1 . 1 Overload Shots . | . . . . Overflow Damage 25 | . . . 25 Projectiles 25 | . . . 25 Explosions . | . . . . Melee . | . . . . Knockbacks . | . . . . Impact . | . . . . Kinetic . | . . . . Secondary . | . . . . Self-Inflicted Damage . | . . . . Shots . | . . . . Rammed . | . . . . Targets Rammed . | . . . . Kicked . | . . . . Crushed . | . . . . Highest Temperature 707 | 39 237 . 707 Average Temperature 85 | 20 66 . 91 Received Heat Transfer 576 | . 267 . 309 Effects 12 | . . . 12 Shutdowns 2 | . . . 2 Energy Bleed 2 | . . . 2 Interference 3 | . . . 3 Matter Decay 1 | . . . 1 Short Circuit 1 | . . . 1 Damage (minor) 1 | . . . 1 Damage (core) 2 | . . . 2 Siege Activations . | . . . . Robots Corrupted . | . . . . Combat Hostiles . | . . . . Parts Fried . | . . . . Impact Corruptions . | . . . . Robots Melted 2 | . 1 . 1 Combat Hostiles 1 | . 1 . . Parts Melted 21 | . 6 . 15 Heat Transferred 7178 | 185 2257 . 4736 Parts Sabotaged . | . . . . Parts Stolen . | . . . . Parts Stripped . | . . . . Power Chain Reactions . | . . . . Alert | -11 -10 -10 -9 ------- Run | Yrd Mat Min Mat Peak Influence 518 | 15 189 45 518 Initial 17 | . 9 5 17 Average 120 | 4 32 5 198 Maximum Alert Level 2 | . . . 2 Low Security (%) 74 | 100 100 100 52 Level 1 22 | . . . 41 Level 2 3 | . . . 6 Level 3 . | . . . . Level 4 . | . . . . Level 5 . | . . . . High Security . | . . . . Max Security . | . . . . Squads Dispatched 3 | . 1 . 2 Investigation 1 | . . . 1 Extermination . | . . . . Reinforcement 2 | . 1 . 1 Assault . | . . . . Garrison . | . . . . Intercept . | . . . . Searches Triggered . | . . . . Construction Impeded . | . . . . Haulers Reinforced . | . . . . Active Scanning Responses . | . . . . Cargo Convoy Interrupts . | . . . . Stealth | -11 -10 -10 -9 --------- Run | Yrd Mat Min Mat Distress Signals 8 | . 2 . 6 Communications Jammed . | . . . . Distress Signals . | . . . . Times Spotted 78 | . 21 5 52 Peak Tracking Total 5 | . 4 5 5 Tactical Retreats 2 | . 1 1 . Traps | -11 -10 -10 -9 ------- Run | Yrd Mat Min Mat Traps Triggered 6 | . 3 . 3 Indirectly . | . . . . Trap Hack Attempts . | . . . . Triggered . | . . . . Disarmed . | . . . . Reprogrammed . | . . . . Reused . | . . . . Traps Extracted . | . . . . Installed . | . . . . Triggered . | . . . . Machines | -11 -10 -10 -9 ---------- Run | Yrd Mat Min Mat Machines Disabled 3 | . . . 3 Max in Single Turn 1 | . . . 1 Machines Repaired . | . . . . Machines Dismantled . | . . . . Machines Sabotaged . | . . . . Overloaded Fab Kills . | . . . . Hacking | -11 -10 -10 -9 --------- Run | Yrd Mat Min Mat Machines Accessed 13 | . 5 1 7 Terminals 9 | . 4 . 5 Fabricators . | . . . . Repair Stations 1 | . . . 1 Recycling Units 2 | . 1 . 1 Scanalyzers . | . . . . Garrison Access . | . . . . Total Hacks 19 | . 7 1 11 Successful 12 | . 4 1 7 Failed 6 | . 2 . 4 Catastrophic 1 | . . . 1 Database Lockouts 1 | . 1 . . Manual 6 | . 5 . 1 Terminals 14 | . 6 . 8 Fabricators . | . . . . Repair Stations 2 | . . . 2 Recycling Units 2 | . 1 . 1 Scanalyzers . | . . . . Garrison Access . | . . . . Terminal Hacks 8 | . 3 1 4 Robot Analysis 1 | . 1 . . Prototype ID Bank 3 | . . . 3 Open Door 1 | . . 1 . Alert Level 1 | . 1 . . Locate Traps 1 | . 1 . . Hauler Manifests 1 | . . . 1 Fabricator Hacks . | . . . . Repair Station Hacks 2 | . . . 2 Scan Component 1 | . . . 1 Repair 1 | . . . 1 Recycling Unit Hacks 1 | . . . 1 Report Inventory 1 | . . . 1 Scanalyzer . | . . . . Garrison Access Hacks . | . . . . Unauthorized Hacks 1 | . 1 . . Terminals . | . . . . Fabricators . | . . . . Repair Stations . | . . . . Recycling Units 1 | . 1 . . Reject 1 | . 1 . . Scanalyzers . | . . . . Garrison Access . | . . . . Data Cores Recovered 1 | . . . 1 Used . | . . . . Hacking Detections 9 | . 3 . 6 Full Trace Events . | . . . . Feedback Events . | . . . . Feedback Blocked . | . . . . Robot Schematics Acquired . | . . . . Robots Built . | . . . . Authchips . | . . . . Time . | . . . . Total Robot Build Rating . | . . . . Part Schematics Acquired . | . . . . Parts Built . | . . . . Authchips . | . . . . Time . | . . . . Total Part Build Rating . | . . . . Parts Repaired 1 | . . . 1 Time 26 | . . . 26 Parts Recycled . | . . . . Recycled Matter . | . . . . Retrieved Matter . | . . . . Retrieved Components . | . . . . Parts Scanalyzed . | . . . . Part Schematics Acquired . | . . . . Parts Damaged . | . . . . Bothacking | -11 -10 -10 -9 ------------ Run | Yrd Mat Min Mat Used RIF Installer . | . . . . Robots Hacked . | . . . . Non-combat . | . . . . Combat . | . . . . Robot Hacks Applied . | . . . . Relay Couplers Released . | . . . . Fabnet Peak Effective % . | . . . . Robots Rewired . | . . . . Allies Hacked . | . . . . Hacks Repelled . | . . . . Allies | -11 -10 -10 -9 -------- Run | Yrd Mat Min Mat Total Allies . | . . . . Largest Group . | . . . . Highest-Rated Group . | . . . . Highest-Rated Ally . | . . . . Total Orders . | . . . . Ally Attacks . | . . . . Total Damage . | . . . . Kills . | . . . . Allies Corrupted . | . . . . Allies Melted . | . . . . Intel | -11 -10 -10 -9 ------- Run | Yrd Mat Min Mat Robot Analysis Total 1 | . 1 . . Derelict Logs Recovered . | . . . . Drone Launches . | . . . . Drone Recoveries . | . . . . Exploration | -11 -10 -10 -9 ------------- Run | Yrd Mat Min Mat Turns Passed 4395 | 157 1794 77 2367 Spaces Moved 1938 | 78 682 91 1087 Core 73 | 2 . 67 4 Treads 1735 | 76 682 . 977 Legs . | . . . . Wheels 24 | . . 24 . Hover 106 | . . . 106 Flight . | . . . . Fastest Speed 50 | 50 160 50 52 Average Speed 185 | 157 224 82 171 Slowest Speed 320 | 160 320 175 300 Overloaded Moves . | . . . . Propulsion Burnouts . | . . . . Robots Hopped . | . . . . Cave-ins Triggered . | . . . . Exploration Rate (%) 55 | 4 89 42 88 Regions Visited 3 Branch Regions 1 Pre-discovered Areas . | . . . . Known Exits Taken . | . . . . Unknown Exits Taken 3 | 1 1 1 . Scrap Searched . | . . . . Spaces Dug . | . . . . Terrain Destroyed . | . . . . Melee . | . . . . Projectile . | . . . . AOE . | . . . . Terrain Rammed . | . . . . Walls Destroyed . | . . . . Machines Disabled . | . . . . Actions | -11 -10 -10 -9 --------- Run | Yrd Mat Min Mat Total 2429 | 103 831 91 1404 Wait 165 | 9 50 . 106 Move 1935 | 77 681 90 1087 Hop . | . . . . Pick Up 52 | 7 21 . 24 Fast Attach 36 | 7 . . 29 Attach 9 | . 1 . 8 Detach . | . . . . Swap 18 | . 8 1 9 Drop 46 | . 11 . 35 Fire 168 | 3 59 . 106 Melee . | . . . . Ram . | . . . . Kick . | . . . . Crush . | . . . . Escape Stasis . | . . . . Rewire . | . . . . Trap . | . . . . Miscellaneous . | . . . . Route ------- -11/Scrapyard -10/Materials (discovered 4 exits: *Mat x3 / *Min) -10/Mines -9/Materials (discovered 4 exits: [*Mat x3] / [*Min]) History --------- Turn | Location | Event 6 | -11/Scrapyard | Discovered new exit (range 15) 158 | -11/Scrapyard | Entered Materials 183 | -10/Materials | Discovered new exit (range 16) 308 | -10/Materials | Build established: Mutant 479 | -10/Materials | Central database locked down 518 | -10/Materials | Discovered new exit (range 10) 833 | -10/Materials | Discovered new exit (range 16) 934 | -10/Materials | Discovered new exit (range 7) 1952 | -10/Materials | Entered Mines 1953 | -10/Mines | Assembled infested the area 1995 | -10/Mines | Core integrity fell below 50% 1996 | -10/Mines | Released all parts (4) 2004 | -10/Mines | Met a Derelict who couldn't figure out how to use a Trap Extractor 2014 | -10/Mines | Core integrity fell below 20% 2023 | -10/Mines | Lost 3 parts (1p1n1w) 2027 | -10/Mines | Discovered new exit (range 5) 2029 | -10/Mines | Entered Materials 2029 | -9/Materials | Evolved 2 slots: Propulsion x1, Utility x1 2343 | -9/Materials | Lost 4 parts (2n1u1w) 2592 | -9/Materials | Build established: Scavenger-Mutant 2954 | -9/Materials | Repaired Lgt. Armor Plating 2967 | -9/Materials | Core integrity fell below 50% 3429 | -9/Materials | Discovered new exit (range 9) 3606 | -9/Materials | Discovered new exit (range 16) 4095 | -9/Materials | Discovered new exit (range 12) 4183 | -9/Materials | Discovered new exit (range 11) 4395 | -9/Materials | Core integrity fell below 20% 4397 | -9/Materials | Core destroyed Last Messages --------------- 04375_ S-10 Pest destroyed. 04378_ Overheating: Matter decay (-30). 04378_ Acquired 13 matter. 04381_ System corrupted: Adv. Beam Cannon failed to cycle. 04384_ Atomic Centrifuge disabled. 04384_ Destroyed Flight Unit. 04388_ Overheating: System interference. 04388_ Transport Network Coupler temporarily disabled. 04388_ Adv. Beam Cannon temporarily disabled. 04390_ System corrupted: Heat flow error (+288). 04391_ Power failure, Ion Engine shutdown. 04392_ Overheating: Med. Storage Unit damaged (-56). 04392_ Dropped Med. Armor Plating. 04393_ Overheating: Energy bleed (-49). 04394_ Imp. Treads broken. 04394_ Overheating: Short circuit. 04395_ Overheating: Core damaged (-64). 04396_ Overheating: System interference. 04396_ Adv. Beam Cannon temporarily disabled. 04397_ Overheating: Core damaged (-80). Map ----- +----------------------------------------------------+ | ????????????????????????????????????????? | | ????????????????????????????????????????? | | ????????????????????????????????????????? | | ????????????????????????????????????????? | | ????????????????????????????????????????? | | ????????????????????????????????????????? | | ????????????????????????????????????????? | | ????????????????????????????????????????? | | ????????????????????????????????????????? | | ????????????????"???????????????????????? | | ???????????????? ???????????????????????? | | ???????????????? ???????????????????????? | | ???????????????? ???????????????????????? | | ???????????????? ???????????????????????? | | ??????????????##;###?????????????######## | | ?????????????? #########?????# | | ??????????????? # ! #?????# | | ???????????????# # #?????# | | ???????????????# # "" #?????# | | ?????########??# + S"" % #?????# | | ?????# ?# # "" #?????# | | ?????# # ^#####+###?????# """ | | ?????#| # #### ######### """ | | ?????# [=+ =%!= """ | | ?????# [ %*#s ##### """ | | ?????# ??#@ #???# | | ?????# ????# #???# | | ?????# ??????# #???###### | | ?????##????????# a #?????# | | ???????????????# !! %#?????# | | ???????????????# !! ##+##+##????# | | ???????????????# !! # % ![#????# | | ???????????????# # """#????# | | ??????????????## # """#????#### | | ??????????????"" # """#???????? | | ??????????????"" # #???????? | | ?????????????#"T # ] #???????? | | ??????????????"" #+######???????? | | ???????????????? """ #????????????? | | ???????????????# """ #????????????? | | ????????????#### """ #????????????? | | ????????????# """ #????????????? | | ????????????# < #????????????? | | ????????????# #?######?????? | | ????????????############ #? ?????? | | ???????????????????????# # """ ""?????? | | ???????????????????????# # """ ""?????? | | ???????????????????????# + """ ""?????? | | ???????????????????????# # ?? | | ???????????????????????# # ! ? | +----------------------------------------------------+ Best States ------------- Heat Dissipation 42 Energy Generation 14 Energy Capacity 280 Matter Stores 300 Matter Capacity 300 Sight Range 16 Terrain Scan Density 10 Armor Coverage 225 Evasion (%) 54 Recoil Reduction 3 Item Schematics ----------------- None Robot Schematics ------------------ None Fabricated ------------ Nothing Alien Tech Used ----------------- None Achievements -------------- None Challenges ------------ None Game ------ Seed MiniRocketStick Manual? 0 Play Time 00:44:14 Cumulative 58.9 hours Start 2024.05.08 @ 01:31:04 End 2024.05.08 @ 16:03:08 Sessions 4 Manual Loads 0 Difficulty Rogue Special Mode None Game No. 38 Rogue 38 Adventurer 0 Explorer 0 Win Type - Total 0 Types 0/0/0/0/0/0/0/0/0 Lore% 43 Gallery% 47 Achievement% 34 Wizard Run 0 Options --------- Layout 0 ASCII 0 Keyboard 0 Movement Mouse Keybinds 0 Fullscreen 2 Font 18/SmallcapsGlow Map View 76x50 Zoom Use 0% Tactical HUD 1 Map Filters NONE Filters NONE Steam 1 RUN: 2391b917-9503-4728-8a06-7dfa6fcadb00